fUST/lending_fUST_20250306
["ID","MTS","AMOUNT","RATE_DAILY","PERIOD"]
[355528390,1741237862989,-500.0,0.00041917,120]
[355528391,1741237862998,-328.71866098,0.00041917,120]
[355528392,1741237863007,-4221.54,0.00041917,120]
[355528393,1741237863016,-1424.52,0.00041917,120]
[355528394,1741237863028,-590.32,0.00041917,120]
[355528395,1741237863039,-500.0,0.00041917,120]
[355528396,1741237863049,-500.0,0.00041917,120]
[355528397,1741237863059,-500.0,0.00041917,120]
[355528398,1741237863070,-500.0,0.00041917,120]
[355528399,1741237863080,-450.0,0.00041917,120]
[355528400,1741237863091,-450.0,0.00041917,120]
[355528401,1741237863101,-500.0,0.00041917,120]
[355528402,1741237863111,-500.0,0.00041917,120]
[355528403,1741237863122,-620.56015775,0.00041917,120]
[355528404,1741237863133,-2002.55,0.00041917,120]
[355528405,1741237863144,-450.0,0.00041917,120]
[355528406,1741237863155,-450.0,0.00041917,120]
[355528407,1741237863165,-2207.75,0.00041917,120]
[355528408,1741237863176,-1766.01,0.00041917,120]
[355528409,1741237863186,-310.79639761,0.00041917,120]
[355528410,1741237863196,-1679.93,0.00041917,120]
[355528411,1741237863206,-592.82,0.00041917,30]
[355528412,1741237863217,-883.0,0.00041917,120]
[355528413,1741237863227,-507.96,0.00041917,120]
[355528414,1741237863238,-4870.97,0.00041917,120]
[355528415,1741237863248,-3457.45,0.00041917,120]
[355528416,1741237863258,-500.0,0.00041917,120]
[355528417,1741237863271,-500.0,0.00041917,120]
[355528418,1741237863282,-622.42,0.00041917,120]
[355528419,1741237863292,-500.0,0.00041917,120]
[355528420,1741237863305,-504.35711855,0.00041917,120]
[355528421,1741237863315,-787.48,0.00041917,120]
[355528422,1741237863325,-4039.68,0.00041917,120]
[355528423,1741237863335,-129496.01,0.00041917,7]
[355528424,1741237863345,-500.0,0.00041917,120]
[355528425,1741237863355,-500.0,0.00041917,120]
[355528426,1741237863365,-1811.17,0.00041917,120]
[355528427,1741237863375,-510.8,0.00041917,120]
[355528428,1741237863386,-898.12,0.00041917,120]
[355528429,1741237863396,-500.0,0.00041917,120]
[355528430,1741237863406,-500.0,0.00041917,120]
[355528431,1741237863417,-689.01,0.00041917,120]
[355528432,1741237863427,-500.0,0.00041917,120]
[355528433,1741237863437,-500.0,0.00041917,120]
[355528434,1741237863447,-851.22,0.00041917,120]
[355528435,1741237863457,-500.0,0.00041917,120]
[355528436,1741237863468,-500.0,0.00041917,120]
[355528437,1741237863480,-3667.84,0.00041917,120]
[355528438,1741237863491,-500.0,0.00041917,120]
[355528439,1741237863502,-4320.76,0.00041917,120]
[355528440,1741237863514,-503.56053277,0.00041917,120]
[355528441,1741237863529,-500.0,0.00041917,120]
[355528442,1741237863539,-500.0,0.00041917,120]
[355528443,1741237863550,-500.0,0.00041917,120]
[355528444,1741237863560,-500.0,0.00041917,120]
[355528445,1741237863570,-500.0,0.00041917,120]
[355528446,1741237863580,-516.95262415,0.00041917,120]
[355528447,1741237863590,-1003.56,0.00041917,120]
[355528448,1741237863598,-500.0,0.00041917,120]
[355528449,1741237863607,-500.0,0.00041917,120]
[355528450,1741237863616,-1551.44,0.00041917,120]
[355528451,1741237863630,-630.01,0.00041917,120]
[355528452,1741237863640,-1531.45,0.00041917,120]
[355528453,1741237863651,-749.41,0.00041917,120]
[355528454,1741237863662,-500.0,0.00041917,120]
[355528455,1741237863673,-500.0,0.00041917,120]
[355528456,1741237863683,-202.95201701,0.00041917,120]
[355528457,1741237863693,-500.0,0.00041917,120]
[355528458,1741237863704,-14800.99,0.00041917,30]
[355528459,1741237863714,-15632.9,0.00041917,120]
[355528460,1741237863724,-555.07,0.00041917,120]
[355528461,1741237863733,-500.0,0.00041917,120]
[355528462,1741237863743,-5660.0,0.00041917,120]
[355528463,1741237863752,-500.0,0.00041917,120]
[355528464,1741237863762,-500.0,0.00041917,120]
[355528465,1741237863773,-500.0,0.00041917,120]
[355528466,1741237863783,-16283.84,0.00041917,120]
[355528467,1741237863793,-664.19,0.00041917,120]
[355528468,1741237863803,-500.0,0.00041917,120]
[355528469,1741237863813,-500.0,0.00041917,120]
[355528470,1741237863822,-1264.44,0.00041917,120]
[355528471,1741237863832,-500.0,0.00041917,120]
[355528472,1741237863842,-625.16,0.00041917,120]
[355528473,1741237863852,-708.29,0.00041917,120]
[355528474,1741237863861,-919.06,0.00041917,120]
[355528475,1741237863871,-1404.31,0.00041917,120]
[355528476,1741237863880,-515.59862716,0.00041917,120]
[355528477,1741237863890,-598.7,0.00041917,120]
[355528478,1741237863899,-810.81,0.00041917,120]
[355528479,1741237863906,-815.42,0.00041917,120]
[355528480,1741237863914,-500.0,0.00041917,120]
[355528481,1741237863924,-2565.08,0.00041917,120]
[355528482,1741237863934,-500.0,0.00041917,120]
[355528483,1741237863944,-500.0,0.00041917,120]
[355528484,1741237863954,-500.0,0.00041917,120]
[355528485,1741237863963,-500.0,0.00041917,120]
[355528486,1741237863974,-500.0,0.00041917,120]
[355528487,1741237863984,-500.0,0.00041917,120]
[355528488,1741237863993,-500.0,0.00041917,120]
[355528489,1741237864003,-644.96,0.00041917,120]
[355528490,1741237864012,-500.0,0.00041917,120]
[355528491,1741237864023,-590.32,0.00041917,120]
[355528492,1741237864031,-2151.3,0.00041917,120]
[355528493,1741237864040,-500.0,0.00041917,120]
[355528494,1741237864049,-653.74,0.00041917,120]
[355528495,1741237864057,-549.46,0.00041917,120]
[355528496,1741237864066,-1171.27,0.00041917,120]
[355528497,1741237864075,-500.0,0.00041917,120]
[355528498,1741237864085,-1334.48,0.00041917,120]
[355528499,1741237864094,-500.0,0.00041917,120]
[355528500,1741237864103,-618.40275397,0.00041917,120]
[355528501,1741237864112,-500.0,0.00041917,120]
[355528502,1741237864122,-1252.24,0.00041917,120]
[355528503,1741237864131,-500.0,0.00041917,120]
[355528504,1741237864140,-500.0,0.00041917,120]
[355528505,1741237864149,-593.16,0.00041917,120]
[355528506,1741237864159,-1664.79,0.00041917,120]
[355528507,1741237864169,-653.07,0.00041917,120]
[355528508,1741237864180,-1311.74,0.00041917,120]
[355528509,1741237864192,-500.0,0.00041917,120]
[355528510,1741237864202,-500.0,0.00041917,120]
[355528511,1741237864211,-1412.51,0.00041917,120]
[355528512,1741237864220,-500.0,0.00041917,120]
[355528513,1741237864229,-513.39805908,0.00041917,120]
[355528514,1741237864238,-536.07,0.00041917,120]
[355528515,1741237864247,-1247.47,0.00041917,120]
[355528516,1741237864256,-500.0,0.00041917,120]
[355528517,1741237864265,-500.0,0.00041917,120]
[355528518,1741237864276,-500.0,0.00041917,120]
[355528519,1741237864285,-500.0,0.00041917,120]
[355528520,1741237864295,-385.32023698,0.00041917,120]
[355528521,1741237864305,-500.0,0.00041917,120]
[355528522,1741237864314,-7432.7,0.00041917,14]
[355528523,1741237864323,-1066.09,0.00041917,120]
[355528524,1741237864332,-500.0,0.00041917,120]
[355528525,1741237864341,-500.0,0.00041917,120]
[355528526,1741237864351,-848.1,0.00041917,120]
[355528527,1741237864360,-10931.63,0.00041917,120]
[355528528,1741237864369,-500.0,0.00041917,120]
[355528529,1741237864378,-960.9,0.00041917,120]
[355528530,1741237864387,-902.96,0.00041917,120]
[355528531,1741237864396,-500.0,0.00041917,120]
[355528532,1741237864406,-500.0,0.00041917,120]
[355528533,1741237864414,-680.24,0.00041917,120]
[355528534,1741237864422,-3968.02,0.00041917,120]
[355528535,1741237864431,-500.0,0.00041917,120]
[355528536,1741237864440,-500.0,0.00041917,120]
[355528537,1741237864450,-500.0,0.00041917,120]
[355528538,1741237864459,-500.0,0.00041917,120]
[355528539,1741237864469,-500.0,0.00041917,120]
[355528540,1741237864479,-500.0,0.00041917,120]
[355528541,1741237864488,-500.0,0.00041917,120]
[355528542,1741237864498,-2248.82,0.00041917,120]
[355528543,1741237864641,-6096.48,0.00041917,120]
[355528544,1741237864654,-500.0,0.00041917,120]
[355528545,1741237864664,-879.45,0.00041917,120]
[355528546,1741237864673,-500.0,0.00041917,120]
[355528547,1741237864683,-500.0,0.00041917,120]
[355528548,1741237864692,-513.65924807,0.00041917,120]
[355528549,1741237864704,-500.0,0.00041917,120]
[355528550,1741237864714,-500.0,0.00041917,120]
[355528551,1741237864723,-500.0,0.00041917,120]
[355528552,1741237864733,-500.0,0.00041917,21]
[355528553,1741237864742,-500.0,0.00041917,120]
[355528554,1741237864753,-500.0,0.00041917,120]
[355528555,1741237864763,-200.0,0.00041973,10]
[355528556,1741237864775,-300.0,0.00041973,10]
[355528557,1741237864788,-2216.0,0.00042,120]
[355528558,1741237864802,-150.0,0.00042,120]
[355528559,1741237864815,-153.0,0.0004203,30]
[355528560,1741237864827,-153.0,0.0004203,30]
[355528561,1741237864837,-153.0,0.0004203,30]
[355528562,1741237864847,-306.0,0.0004203,30]
[355528563,1741237864856,-163.08,0.00042066,2]
[355528564,1741237864866,-500.0,0.00042095,120]
[355528565,1741237864876,-1500.0,0.00042155,120]
[355528566,1741237864885,-500.0,0.00042191,120]
[355528567,1741237864896,-500.0,0.00042191,120]
[355528568,1741237864905,-500.0,0.00042191,120]
[355528569,1741237864915,-500.0,0.00042191,120]
[355528570,1741237864924,-634.5747152,0.00042191,120]
[355528571,1741237864934,-500.0,0.00042191,120]
[355528572,1741237864944,-502.44,0.00042191,120]
[355528573,1741237864953,-500.0,0.00042191,120]
[355528574,1741237864963,-500.0,0.00042191,120]
[355528575,1741237864972,-500.0,0.00042191,120]
[355528576,1741237864982,-500.0,0.00042191,120]
[355528577,1741237864992,-502.10593058,0.00042191,120]
[355528578,1741237865001,-518.05899217,0.00042191,120]
[355528579,1741237865010,-500.0,0.00042191,120]
[355528580,1741237865021,-611.27013156,0.00042191,120]
[355528581,1741237865030,-500.0,0.00042191,120]
[355528582,1741237865039,-500.0,0.00042191,120]
[355528583,1741237865049,-500.0,0.00042191,120]
[355528584,1741237865058,-500.0,0.00042191,120]
[355528585,1741237865067,-500.0,0.00042191,120]
[355528586,1741237865077,-500.0,0.00042191,120]
[355528587,1741237865086,-500.0,0.00042191,120]
[355528588,1741237865095,-502.79719779,0.00042191,120]
[355528589,1741237865104,-500.0,0.00042191,120]
[355528590,1741237865113,-500.0,0.00042191,120]
[355528591,1741237865122,-239.94163954,0.00042191,120]
[355528592,1741237865131,-739.02,0.00042191,120]
[355528593,1741237865140,-500.0,0.00042191,120]
[355528594,1741237865150,-500.0,0.00042191,120]
[355528595,1741237865159,-500.0,0.00042191,120]
[355528596,1741237865169,-500.0,0.00042191,120]
[355528597,1741237865178,-500.0,0.00042191,120]
[355528598,1741237865186,-500.0,0.00042191,120]
[355528599,1741237865195,-500.0,0.00042191,120]
[355528600,1741237865205,-500.0,0.00042191,120]
[355528601,1741237865214,-500.0,0.00042191,120]
[355528602,1741237865222,-500.0,0.00042191,120]
[355528603,1741237865231,-500.0,0.00042191,120]
[355528604,1741237865239,-1371.74,0.00042191,120]
[355528605,1741237865248,-500.0,0.00042191,120]
[355528606,1741237865257,-500.0,0.00042191,120]
[355528607,1741237865266,-500.0,0.00042191,120]
[355528608,1741237865276,-555.29,0.00042191,120]
[355528609,1741237865285,-500.0,0.00042191,120]
[355528610,1741237865295,-500.0,0.00042191,120]
[355528611,1741237865304,-500.0,0.00042191,120]
[355528612,1741237865313,-541.07641942,0.00042191,120]
[355528613,1741237865322,-508.59536408,0.00042191,120]
[355528614,1741237865331,-507.33030653,0.00042191,120]
[355528615,1741237865340,-673.16,0.00042191,120]
[355528616,1741237865349,-500.0,0.00042191,120]
[355528617,1741237865358,-500.0,0.00042191,120]
[355528618,1741237865367,-615.42,0.00042191,120]
[355528619,1741237865376,-503.97051275,0.00042191,120]
[355528620,1741237865385,-500.0,0.00042191,120]
[355528621,1741237865394,-500.0,0.00042191,120]
[355528622,1741237865404,-507.52796322,0.00042191,120]
[355528623,1741237865413,-1050.23,0.00042191,120]
[355528624,1741237865423,-500.0,0.00042191,120]
[355528625,1741237865432,-515.74116366,0.00042191,120]
[355528626,1741237865442,-500.0,0.00042191,120]
[355528627,1741237865451,-542.25842301,0.00042191,7]
[355528628,1741237865461,-500.0,0.00042191,120]
[355528629,1741237865471,-415.05207918,0.00042191,120]
[355528630,1741237865480,-500.0,0.00042191,120]
[355528631,1741237865490,-156.05781564,0.00042191,120]
[355528632,1741237865500,-500.0,0.00042191,120]
[355528633,1741237865510,-635.2587537,0.00042191,120]
[355528634,1741237865519,-500.0,0.00042191,120]
[355528635,1741237865529,-500.0,0.00042191,120]
[355528636,1741237865538,-500.0,0.00042191,120]
[355528637,1741237865548,-591.46080425,0.00042191,120]
[355528638,1741237865557,-500.0,0.00042191,120]
[355528639,1741237865566,-500.0,0.00042191,120]
[355528640,1741237865575,-500.0,0.00042191,120]
[355528641,1741237865585,-512.82201732,0.00042191,120]
[355528642,1741237865594,-500.0,0.00042191,120]
[355528643,1741237865603,-500.0,0.00042191,120]
[355528644,1741237865613,-716.64,0.00042191,120]
[355528645,1741237865627,-497.16,0.00042191,2]
[355528646,1741237865636,-369.60666752,0.00042191,120]
[355528647,1741237865646,-554.8,0.00042191,120]
[355528648,1741237865656,-667.04,0.00042191,2]
[355528649,1741237865666,-500.0,0.00042191,120]
[355528650,1741237865675,-510.59147579,0.00042191,120]
[355528651,1741237865685,-887.15,0.00042191,120]
[355528652,1741237865695,-500.0,0.00042191,120]
[355528653,1741237865704,-500.0,0.00042191,120]
[355528654,1741237865712,-500.0,0.00042191,120]
[355528655,1741237865721,-526.63095044,0.00042191,120]
[355528656,1741237865730,-623.87,0.00042191,120]
[355528657,1741237865739,-500.0,0.00042191,120]
[355528658,1741237865748,-500.0,0.00042191,120]
[355528659,1741237865757,-500.0,0.00042191,120]
[355528660,1741237865766,-500.0,0.00042191,120]
[355528661,1741237865777,-516.76839219,0.00042191,120]
[355528662,1741237865786,-500.0,0.00042191,120]
[355528663,1741237865795,-746.65,0.00042191,120]
[355528664,1741237865804,-500.0,0.00042191,120]
[355528665,1741237865813,-514.84198962,0.00042191,120]
[355528666,1741237865822,-727.8,0.00042191,120]
[355528667,1741237865831,-500.0,0.00042191,120]
[355528668,1741237865840,-500.0,0.00042191,120]
[355528669,1741237865849,-500.0,0.00042191,120]
[355528670,1741237865858,-500.0,0.00042191,120]
[355528671,1741237865867,-500.0,0.00042191,120]
[355528672,1741237865877,-500.0,0.00042191,120]
[355528673,1741237865886,-500.0,0.00042191,120]
[355528674,1741237865895,-500.0,0.00042191,120]
[355528675,1741237865904,-500.0,0.00042191,120]
[355528676,1741237865913,-500.0,0.00042191,120]
[355528677,1741237865921,-500.0,0.00042191,120]
[355528678,1741237865930,-500.0,0.00042191,120]
[355528679,1741237865938,-500.0,0.00042191,120]
[355528680,1741237865947,-500.0,0.00042191,120]
[355528681,1741237865956,-500.0,0.00042191,120]
[355528682,1741237865965,-500.0,0.00042191,120]
[355528683,1741237865974,-500.0,0.00042191,120]
[355528684,1741237865983,-500.0,0.00042191,120]
[355528685,1741237865992,-500.0,0.00042191,120]
[355528686,1741237866002,-500.0,0.00042191,120]
[355528687,1741237866012,-500.0,0.00042191,120]
[355528688,1741237866021,-500.0,0.00042191,120]
[355528689,1741237866031,-500.0,0.00042191,14]
[355528690,1741237866040,-500.0,0.00042191,120]
[355528691,1741237866049,-500.0,0.00042191,120]
[355528692,1741237866059,-500.0,0.00042191,120]
[355528693,1741237866069,-500.0,0.00042191,120]
[355528694,1741237866078,-1078.51,0.00042191,120]
[355528695,1741237866087,-500.0,0.00042191,120]
[355528696,1741237866096,-500.0,0.00042191,120]
[355528697,1741237866105,-500.0,0.00042191,120]
[355528698,1741237866114,-500.0,0.00042191,120]
[355528699,1741237866123,-511.83943149,0.00042191,120]
[355528700,1741237866132,-500.0,0.00042191,120]
[355528701,1741237866141,-500.0,0.00042191,120]
[355528702,1741237866150,-500.0,0.00042191,120]
[355528703,1741237866159,-884.88,0.00042191,120]
[355528704,1741237866168,-858.76,0.00042191,120]
[355528705,1741237866177,-833.49,0.00042191,120]
[355528706,1741237866186,-500.0,0.00042191,120]
[355528707,1741237866195,-500.0,0.00042191,120]
[355528708,1741237866204,-834.25,0.00042191,120]
[355528709,1741237866213,-632.98,0.00042191,120]
[355528710,1741237866222,-500.0,0.00042191,120]
[355528711,1741237866231,-500.0,0.00042191,120]
[355528712,1741237866240,-454.08206639,0.00042191,120]
[355528713,1741237866249,-523.28620313,0.00042191,120]
[355528714,1741237866258,-500.0,0.00042191,120]
[355528715,1741237866267,-500.0,0.00042191,120]
[355528716,1741237866279,-514.31271346,0.00042191,120]
[355528717,1741237866288,-1030.00892182,0.00042191,120]
[355528718,1741237866297,-500.0,0.00042191,120]
[355528719,1741237866306,-500.0,0.00042191,120]
[355528720,1741237866315,-500.0,0.00042191,120]
[355528721,1741237866324,-500.0,0.00042191,120]
[355528722,1741237866334,-500.0,0.00042191,120]
[355528723,1741237866343,-500.0,0.00042191,120]
[355528724,1741237866352,-500.0,0.00042191,120]
[355528725,1741237866362,-500.0,0.00042191,120]
[355528726,1741237866371,-500.0,0.00042191,120]
[355528727,1741237866380,-699.26,0.00042191,120]
[355528728,1741237866390,-500.0,0.00042191,120]
[355528729,1741237866399,-500.0,0.00042191,120]
[355528730,1741237866408,-500.0,0.00042191,2]
[355528731,1741237866418,-500.0,0.00042191,120]
[355528732,1741237866427,-500.0,0.00042191,120]
[355528733,1741237866436,-630.68,0.00042191,120]
[355528734,1741237866445,-500.0,0.00042191,120]
[355528735,1741237866455,-500.0,0.00042191,120]
[355528736,1741237866465,-500.0,0.00042191,120]
[355528737,1741237866475,-500.0,0.00042191,120]
[355528738,1741237866484,-679.03,0.00042191,120]
[355528739,1741237866493,-831.57,0.00042191,120]
[355528740,1741237866503,-503.65966449,0.00042191,120]
[355528741,1741237866512,-500.0,0.00042191,120]
[355528742,1741237866523,-2036.43,0.00042191,10]
[355528743,1741237866532,-500.0,0.00042191,120]
[355528744,1741237866541,-500.0,0.00042191,120]
[355528745,1741237866550,-500.0,0.00042191,120]
[355528746,1741237866559,-500.0,0.00042191,120]
[355528747,1741237866568,-500.0,0.00042191,120]
[355528748,1741237866578,-500.0,0.00042191,120]
[355528749,1741237866587,-500.0,0.00042191,120]
[355528750,1741237866596,-500.0,0.00042191,120]
[355528751,1741237866605,-500.0,0.00042191,120]
[355528752,1741237866618,-500.0,0.00042191,120]
[355528753,1741237866627,-567.64282407,0.00042191,120]
[355528754,1741237866637,-500.0,0.00042191,120]
[355528755,1741237866646,-500.0,0.00042191,30]
[355528756,1741237866655,-500.0,0.00042191,120]
[355528757,1741237866664,-500.0,0.00042191,120]
[355528758,1741237866674,-594.5,0.00042191,120]
[355528759,1741237866683,-500.0,0.00042191,120]
[355528760,1741237866694,-500.0,0.00042191,120]
[355528761,1741237866704,-500.0,0.00042191,120]
[355528762,1741237866713,-500.0,0.00042191,120]
[355528763,1741237866722,-500.0,0.00042191,120]
[355528764,1741237866731,-2108.65,0.00042191,120]
[355528765,1741237866741,-530.85983717,0.00042191,120]
[355528766,1741237866750,-500.0,0.00042191,120]
[355528767,1741237866759,-655.33,0.00042191,120]
[355528768,1741237866768,-500.0,0.00042191,120]
[355528769,1741237866780,-717.97,0.00042191,120]
[355528770,1741237866789,-500.0,0.00042191,120]
[355528771,1741237866798,-500.0,0.00042191,120]
[355528772,1741237866807,-500.0,0.00042191,120]
[355528773,1741237866816,-519.30718907,0.00042191,120]
[355528774,1741237866826,-743.04,0.00042191,120]
[355528775,1741237866835,-500.0,0.00042191,120]
[355528776,1741237866844,-500.0,0.00042191,120]
[355528777,1741237866853,-2423.24,0.00042191,120]
[355528778,1741237866863,-521.54,0.00042191,120]
[355528779,1741237866872,-206.21533047,0.00042191,120]
[355528780,1741237866881,-513.83419274,0.00042191,120]
[355528781,1741237866891,-500.0,0.00042191,120]
[355528782,1741237866900,-542.28534563,0.00042191,120]
[355528783,1741237866909,-919.59,0.00042191,120]
[355528784,1741237866918,-500.0,0.00042191,120]
[355528785,1741237866927,-500.0,0.00042191,120]
[355528786,1741237866936,-500.0,0.00042191,120]
[355528787,1741237866945,-500.0,0.00042191,120]
[355528788,1741237866955,-500.0,0.00042191,120]
[355528789,1741237866964,-525.45363331,0.00042191,120]
[355528790,1741237866973,-500.0,0.00042191,120]
[355528791,1741237866982,-528.53801763,0.00042191,120]
[355528792,1741237866992,-993.65,0.00042191,120]
[355528793,1741237867001,-500.0,0.00042191,120]
[355528794,1741237867010,-215.68558646,0.00042191,120]
[355528795,1741237867019,-500.0,0.00042191,120]
[355528796,1741237867029,-534.38770627,0.00042191,120]
[355528797,1741237867038,-1355.24,0.00042191,120]
[355528798,1741237867048,-500.0,0.00042191,120]
[355528799,1741237867057,-880.41,0.00042191,120]
[355528800,1741237867066,-500.0,0.00042191,120]
[355528801,1741237867075,-500.0,0.00042191,120]
[355528802,1741237867085,-500.0,0.00042191,120]
[355528803,1741237867094,-500.0,0.00042191,120]
[355528804,1741237867104,-500.0,0.00042191,120]
[355528805,1741237867113,-500.0,0.00042191,120]
[355528806,1741237867122,-500.0,0.00042191,120]
[355528807,1741237867131,-544.54169443,0.00042191,120]
[355528808,1741237867141,-500.0,0.00042191,120]
[355528809,1741237867150,-500.0,0.00042191,120]
[355528810,1741237867159,-500.0,0.00042191,120]
[355528811,1741237867168,-574.84,0.00042191,120]
[355528812,1741237867177,-593.36,0.00042191,120]
[355528813,1741237867187,-500.0,0.00042191,120]
[355528814,1741237867196,-500.0,0.00042191,120]
[355528815,1741237867205,-500.0,0.00042191,120]
[355528816,1741237867215,-500.0,0.00042191,120]
[355528817,1741237867225,-500.0,0.00042191,120]
[355528818,1741237867235,-500.0,0.00042191,120]
[355528819,1741237867244,-1391.45,0.00042191,120]
[355528820,1741237867253,-801.42,0.00042191,120]
[355528821,1741237867262,-500.0,0.00042191,120]
[355528822,1741237867273,-500.0,0.00042191,120]
[355528823,1741237867282,-499.85276344,0.00042191,120]
[355528824,1741237867291,-500.0,0.00042191,120]
[355528825,1741237867300,-500.0,0.00042191,120]
[355528826,1741237867309,-1637.54,0.00042191,120]
[355528827,1741237867318,-500.0,0.00042191,120]
[355528828,1741237867327,-1277.32,0.00042191,120]
[355528829,1741237867336,-500.0,0.00042191,120]
[355528830,1741237867348,-500.0,0.00042191,120]
[355528831,1741237867357,-500.0,0.00042191,120]
[355528832,1741237867366,-648.9,0.00042191,120]
[355528833,1741237867375,-500.0,0.00042191,120]
[355528834,1741237867385,-500.0,0.00042191,120]
[355528835,1741237867395,-622.27,0.00042191,120]
[355528836,1741237867404,-500.0,0.00042191,120]
[355528837,1741237867414,-500.0,0.00042191,120]
[355528838,1741237867423,-500.0,0.00042191,120]
[355528839,1741237867433,-500.0,0.00042191,120]
[355528840,1741237867442,-500.0,0.00042191,120]
[355528841,1741237867452,-1008.22,0.00042191,120]
[355528842,1741237867462,-500.0,0.00042191,120]
[355528843,1741237867471,-500.0,0.00042191,120]
[355528844,1741237867481,-500.0,0.00042191,120]
[355528845,1741237867490,-500.0,0.00042191,120]
[355528846,1741237867500,-500.0,0.00042191,120]
[355528847,1741237867509,-500.0,0.00042191,120]
[355528848,1741237867519,-500.0,0.00042191,120]
[355528849,1741237867529,-500.0,0.00042191,120]
[355528850,1741237867539,-500.0,0.00042191,120]
[355528851,1741237867548,-500.0,0.00042191,120]
[355528852,1741237867558,-1098.8,0.00042191,120]
[355528853,1741237867567,-500.0,0.00042191,120]
[355528854,1741237867576,-2064.99,0.00042191,120]
[355528855,1741237867586,-500.0,0.00042191,120]
[355528856,1741237867596,-500.0,0.00042191,120]
[355528857,1741237867606,-500.0,0.00042191,120]
[355528858,1741237867617,-500.0,0.00042191,120]
[355528859,1741237867627,-1225.72,0.00042191,120]
[355528860,1741237867636,-1013.26,0.00042191,120]
[355528861,1741237867645,-500.0,0.00042191,120]
[355528862,1741237867656,-500.0,0.00042191,120]
[355528863,1741237867665,-2252.5,0.00042191,120]
[355528864,1741237867674,-500.0,0.00042191,120]
[355528865,1741237867683,-500.0,0.00042191,120]
[355528866,1741237867694,-267.55145989,0.00042191,120]
[355528867,1741237867704,-417.25279862,0.00042191,120]
[355528868,1741237867713,-500.0,0.00042191,120]
[355528869,1741237867723,-538.81634854,0.00042191,120]
[355528870,1741237867732,-2440.78,0.00042191,120]
[355528871,1741237867873,-500.0,0.00042191,120]
[355528872,1741237867896,-997.54713893,0.00042191,120]
[355528873,1741237867905,-500.0,0.00042191,120]
[355528874,1741237867915,-500.0,0.00042191,120]
[355528875,1741237867924,-500.0,0.00042191,120]
[355528876,1741237867933,-500.0,0.00042191,120]
[355528877,1741237867943,-500.0,0.00042191,120]
[355528878,1741237867952,-500.0,0.00042191,120]
[355528879,1741237867961,-526.42798111,0.00042191,120]
[355528880,1741237867970,-1145.66,0.00042191,120]
[355528881,1741237867980,-2132.95,0.00042191,120]
[355528882,1741237867989,-500.0,0.00042191,120]
[355528883,1741237867999,-1245.45,0.00042191,120]
[355528884,1741237868009,-500.0,0.00042191,120]
[355528885,1741237868018,-500.0,0.00042191,120]
[355528886,1741237868030,-500.0,0.00042191,120]
[355528887,1741237868040,-500.0,0.00042191,120]
[355528888,1741237868049,-505.80084179,0.00042191,120]
[355528889,1741237868059,-844.52,0.00042191,120]